bitfinex/quotes_SOLUSD_20251009
["timestamp","ask_amount","ask_price","bid_price","bid_amount"]
[1760021226582,4.01944226,219.87,219.79,4.73944226]
[1760021226891,20.8,219.86,219.79,4.73944226]
[1760021227094,0.6,219.89,219.86,10.87647521]
[1760021227296,19.99999999,220.05,219.89,10.87647521]
[1760021227297,4.54456743,220.05,219.89,10.87647521]
[1760021227513,4.01944226,219.98,219.9,4.73944226]
[1760021227688,4.01944226,220.0,219.93,4.54690128]
[1760021227887,4.01944226,219.99,219.92,4.01944226]
[1760021228329,24.81944226,220.01,219.92,4.01944226]
[1760021228494,4.01944226,220.01,219.94,4.01944226]
[1760021229024,4.01944226,219.95,219.77,19.99999999]
[1760021229205,4.01944226,219.92,219.84,4.01944226]
[1760021229403,4.01944226,219.9,219.82,4.01944226]
[1760021229621,4.01944226,219.88,219.81,4.01944226]
[1760021230093,20.8,219.94,219.85,4.01944226]
[1760021230431,20.8,219.92,219.85,0.72]
[1760021230594,20.8,219.92,219.81,10.87647521]
[1760021230933,20.8,219.93,219.88,4.01944226]
[1760021231120,20.8,219.95,219.88,4.01944226]
[1760021231822,4.01944226,219.91,219.84,4.01944226]
[1760021232007,24.81944226,219.91,219.8,10.87647521]
[1760021232313,24.81944226,219.91,219.8,4.73944226]
[1760021232314,4.01944226,219.89,219.8,4.73944226]
[1760021232491,20.8,219.91,219.79,0.72]
[1760021232697,20.8,219.86,219.8,4.01944226]
[1760021232892,20.8,219.91,219.8,4.01944226]
[1760021233095,20.8,219.91,219.88,4.01944226]
[1760021233298,4.54618544,219.97,219.9,4.01944226]
[1760021233717,36.5,219.99,219.92,4.01944226]
[1760021233900,36.5,219.99,219.94,4.01944226]
[1760021234094,36.5,219.99,219.96,4.01944226]
[1760021234296,0.21,220.1,219.98,4.01944226]
[1760021234520,14.44,220.12,220.03,4.01944226]
[1760021234693,4.01944226,220.09,219.99,0.72]
[1760021234896,20.8,220.09,220.01,4.01944226]
[1760021235119,20.8,220.06,220.01,4.01944226]
[1760021235493,4.01944226,220.08,219.92,10.87647521]
[1760021235698,4.01944226,220.04,219.96,4.01944226]
[1760021235901,20.8,220.09,220.0,4.01944226]
[1760021236105,20.8,220.08,220.01,0.72]
[1760021236405,15.90121912,220.11,220.0,4.73944226]
[1760021236608,24.81944226,220.08,220.0,0.72]
[1760021236916,4.01944226,220.07,220.0,4.01944226]
[1760021237114,4.01944226,220.06,219.99,4.01944226]
[1760021237298,20.8,220.08,219.99,4.01944226]
[1760021238001,20.8,220.05,219.99,8.56490827]
[1760021238322,11.35427156,220.19,220.03,4.01944226]
[1760021238499,4.01944226,220.13,220.05,4.01944226]
[1760021238703,20.8,220.12,220.05,4.01944226]
[1760021238914,20.8,220.12,220.06,0.72]
[1760021239124,20.8,220.12,220.07,4.01944226]
[1760021239310,20.8,220.12,220.07,4.73944226]
[1760021239511,4.01944226,220.15,220.08,0.72]
[1760021239711,20.8,220.13,220.08,0.72]
[1760021239914,40.41944226,220.16,220.09,8.56303806]
[1760021240237,36.54,220.2,220.11,4.01944226]
[1760021240538,20.8,220.17,220.11,4.01944226]
[1760021241097,4.01944226,220.19,220.11,4.01944226]
[1760021241318,0.2,220.2,220.17,4.01944226]
[1760021241528,0.2,220.2,220.16,4.01944226]
[1760021241830,4.01944226,220.18,220.11,10.87647521]
[1760021242000,4.01944226,220.15,220.06,4.66944226]
[1760021242200,4.01944226,220.14,220.07,10.87647521]
[1760021242395,4.01944226,220.14,220.08,0.65]
[1760021242798,4.01944226,220.14,220.05,0.65]
[1760021243000,20.8,220.15,220.05,0.65]
[1760021243222,4.01944226,220.14,220.06,4.01944226]
[1760021243505,24.81944226,220.15,220.07,0.65]
[1760021243713,20.8,220.15,220.07,4.66944226]
[1760021244030,36.38,220.18,220.11,4.01944226]
[1760021244337,36.38,220.18,220.11,4.66944226]
[1760021245405,40.92175091,220.18,220.11,0.65]
[1760021245610,20.8,220.15,220.08,10.87647521]
[1760021245949,4.54256382,220.14,220.07,14.89591747]
[1760021246107,20.8,220.15,220.07,14.89591747]
[1760021246503,20.8,220.15,220.07,10.87647521]
[1760021246712,20.8,220.15,220.08,4.66944226]
[1760021247526,4.01944226,220.16,220.08,4.66944226]
[1760021247732,57.18,220.18,220.1,4.01944226]
[1760021248027,4.01944226,220.17,220.09,0.65]
[1760021248230,57.18,220.18,220.1,4.01944226]
[1760021248527,4.01944226,220.17,220.1,4.01944226]
[1760021248729,24.81944226,220.15,220.09,0.65]
[1760021249110,20.8,220.15,220.09,4.66944226]
[1760021249304,0.5,220.16,220.13,4.01944226]
[1760021249508,36.38,220.18,220.13,4.01944226]
[1760021249509,36.38,220.18,220.14,0.65]
[1760021249713,36.38,220.18,220.15,0.65]
[1760021249920,0.2,220.2,220.16,0.65]
[1760021250234,0.2,220.2,220.17,4.66944226]
[1760021250530,0.2,220.2,220.17,9.21129205]
[1760021251122,0.2,220.2,220.07,20.8]
[1760021251123,4.74136798,220.2,220.07,20.8]
[1760021251324,4.01944226,220.1,219.92,4.54694693]
[1760021251513,16.09468314,220.2,220.0,4.01944226]
[1760021251514,20.8,220.08,220.0,4.01944226]
[1760021251719,20.8,220.07,220.0,4.01944226]
[1760021251931,28.16,220.1,220.02,4.01944226]
[1760021252137,48.96,220.1,220.03,0.65]
[1760021252308,48.96,220.1,220.03,4.66944226]
[1760021252635,53.5035883,220.1,220.03,4.66944226]
[1760021252834,53.5035883,220.1,220.03,9.21422562]
[1760021253037,57.52303056,220.1,220.03,0.65]
[1760021253211,57.52303056,220.1,220.01,4.01944226]
[1760021253408,53.5035883,220.1,220.01,14.89591747]
[1760021253607,57.52288361,220.1,220.02,0.65]
[1760021253837,4.01944226,220.09,220.02,0.65]
[1760021254133,4.01944226,220.09,220.01,10.87647521]
[1760021254434,4.01944226,220.05,219.98,0.65]
[1760021254611,4.01944226,220.05,219.98,5.19571961]
[1760021254811,28.16,220.1,219.98,16.07219482]
[1760021255009,20.8,220.07,219.99,11.52647521]
[1760021255213,20.8,220.07,220.01,10.87647521]
[1760021255436,20.8,220.07,220.0,4.01944226]
[1760021255642,24.81944226,220.07,219.99,4.66944226]
[1760021255842,24.81944226,220.07,219.99,10.87647521]
[1760021256010,24.81944226,220.07,220.0,4.01944226]
[1760021256215,20.8,220.07,220.0,4.66944226]
[1760021256417,4.01944226,220.01,219.96,11.52647521]
[1760021256626,24.81944226,220.01,219.92,10.87647521]
[1760021256921,4.01944226,219.97,219.9,10.87647521]
[1760021257114,0.21,220.0,219.9,10.87647521]
[1760021257314,4.01944226,219.97,219.89,4.01944226]
[1760021257517,0.21,220.0,219.9,0.65]
[1760021257738,0.21,220.0,219.89,10.87647521]
[1760021257944,4.01944226,219.97,219.9,0.65]
[1760021258135,4.01944226,219.99,219.9,4.66944226]
[1760021258324,4.01944226,219.97,219.87,10.87647521]
[1760021258529,57.44,219.97,219.9,4.01944226]
[1760021259138,57.44,219.97,219.89,14.89591747]
[1760021260248,20.8,219.94,219.78,10.87647521]
[1760021260473,24.81944226,219.94,219.85,4.01944226]
[1760021260751,20.8,219.94,219.84,0.65]
[1760021260976,4.01944226,219.94,219.86,10.87647521]
[1760021261126,36.7,219.95,219.88,10.87647521]
[1760021261453,36.7,219.95,219.89,4.66944226]
[1760021261620,36.7,219.95,219.78,34.76032346]
[1760021261817,4.01944226,219.93,219.85,4.66944226]
[1760021262042,57.5,219.95,219.85,9.21793644]
[1760021262249,4.01944226,219.89,219.79,0.65]
[1760021262460,4.01944226,219.9,219.8,11.59647521]
[1760021262761,4.01944226,219.91,219.83,4.01944226]
[1760021262922,20.8,219.92,219.84,0.72]
[1760021263122,20.8,219.92,219.85,10.87647521]
[1760021263543,20.8,219.92,219.84,4.73944226]
[1760021264335,20.8,219.92,219.84,9.28812456]
[1760021264640,20.8,219.92,219.87,4.01944226]
[1760021264850,20.8,219.92,219.88,0.72]
[1760021265061,4.01944226,219.93,219.85,14.89591747]
[1760021265270,36.7,219.95,219.85,14.89591747]
[1760021265440,4.01944226,219.94,219.87,14.89591747]
[1760021265642,20.8,219.92,219.87,14.89591747]
[1760021265839,0.21,220.02,219.9,8.56696386]
[1760021266050,4.01944226,220.04,219.94,4.01944226]
[1760021266258,4.01944226,220.04,219.94,4.73944226]
[1760021266450,4.01944226,220.04,219.96,4.01944226]
[1760021266637,4.01944226,220.05,219.96,4.01944226]
[1760021267544,4.01944226,220.05,219.97,5.26591161]
[1760021267739,4.01944226,220.05,219.97,5.26601865]
[1760021267943,4.01944226,220.04,219.96,10.87647521]
[1760021268245,0.5,220.03,219.96,11.59647521]
[1760021268555,4.01944226,219.97,219.9,10.87647521]
[1760021268755,0.21,220.04,219.91,0.72]
[1760021268941,0.21,220.04,219.91,4.73944226]
[1760021269142,4.01944226,219.98,219.91,0.72]
[1760021269644,4.01944226,219.96,219.88,10.87647521]
[1760021269841,4.01944226,219.94,219.88,10.87647521]
[1760021270060,20.8,219.95,219.89,0.72]
[1760021270466,0.21,220.06,219.94,4.01944226]
[1760021270666,4.01944226,220.02,219.94,4.01944226]
[1760021270868,4.01944226,220.02,219.93,11.59647521]
[1760021271167,4.01944226,220.02,219.92,4.01944226]
[1760021271168,4.01944226,220.06,219.95,10.87647521]
[1760021271341,4.01944226,220.06,219.98,10.87647521]
[1760021271545,4.01944226,220.06,219.99,4.73944226]
[1760021271747,36.66,220.13,220.01,14.89591747]
[1760021271947,36.66,220.13,220.02,0.72]
[1760021271948,4.01944226,220.09,220.02,0.72]
[1760021272169,4.01944226,220.11,220.02,0.72]
[1760021272549,4.01944226,220.1,220.03,14.89591747]
[1760021272745,4.75194486,220.17,220.04,0.72]
[1760021273052,4.01944226,220.15,220.07,4.01944226]
[1760021273265,4.01944226,220.15,220.07,0.72]
[1760021273765,4.01944226,220.13,219.96,4.01944226]
[1760021273962,4.01944226,220.11,220.03,10.87647521]
[1760021274258,4.01944226,220.13,220.07,10.87647521]
[1760021274440,0.2,220.19,220.09,10.87647521]
[1760021274637,4.01944226,220.17,220.09,10.87647521]
[1760021274867,4.01944226,220.17,220.1,0.72]
[1760021275054,0.2,220.19,220.1,0.72]
[1760021275272,0.2,220.19,220.11,10.87647521]
[1760021275573,0.2,220.19,220.13,10.87647521]
[1760021275864,0.2,220.19,220.15,10.87647521]
[1760021276265,0.2,220.19,220.16,0.72]
[1760021276467,0.2,220.19,220.11,0.72]
[1760021276642,0.2,220.19,220.12,14.89591747]
[1760021276843,0.2,220.19,220.14,10.87647521]
[1760021277342,0.2,220.19,220.15,0.72]
[1760021277542,0.2,220.19,220.17,10.87647521]
[1760021277774,0.2,220.19,220.18,5.26173857]
[1760021278065,0.2,220.19,220.18,16.13821378]
[1760021278242,0.2,220.2,220.18,20.15765604]
[1760021278443,0.2,220.2,220.19,0.72]
[1760021279258,0.2,220.2,220.19,11.59647521]
[1760021280166,0.2,220.2,220.19,10.87647521]
[1760021280369,0.2,220.2,220.19,11.59647521]
[1760021280954,0.2,220.2,220.19,47.93647521]
[1760021281356,0.2,220.2,220.17,40.84176389]
[1760021281568,0.2,220.2,220.17,36.3]
[1760021281868,4.21944226,220.2,220.15,10.87647521]
[1760021282167,0.2,220.2,220.15,10.87647521]
[1760021282364,0.2,220.2,220.17,4.01944226]
[1760021282545,0.2,220.2,220.19,14.89591747]
[1760021282746,0.2,220.2,220.19,15.61591747]
[1760021282957,0.2,220.2,220.19,47.11647521]
[1760021283167,0.2,220.2,220.19,47.83647521]
[1760021283345,0.2,220.2,220.19,51.85591747]
[1760021283549,0.2,220.2,220.19,47.83647521]
[1760021283753,0.2,220.2,220.19,52.37800752]
[1760021283953,0.2,220.2,220.19,56.39744978]
[1760021284369,0.2,220.2,220.19,47.83647521]
[1760021284568,0.2,220.2,220.19,10.87647521]
[1760021284754,0.2,220.2,220.19,11.59647521]
[1760021284952,0.2,220.2,220.19,10.87647521]
[1760021286352,0.2,220.2,220.19,11.59647521]
[1760021286860,0.2,220.2,220.19,16.13800752]
[1760021287059,0.2,220.2,220.19,19.43744978]
[1760021287266,0.2,220.2,220.19,10.87647521]
[1760021287762,0.61,220.2,220.17,10.87647521]
[1760021287968,0.2,220.2,220.17,10.87647521]
[1760021288458,0.2,220.2,220.19,10.87647521]
[1760021288859,0.2,220.2,220.19,11.59647521]
[1760021289259,20.8,220.17,220.11,10.87647521]
[1760021289477,20.8,220.17,220.13,10.87647521]
[1760021289662,20.8,220.17,220.15,10.87647521]
[1760021289969,0.2,220.2,220.17,10.87647521]
[1760021290182,0.2,220.2,220.17,47.05647521]
[1760021290380,0.2,220.2,220.19,10.87647521]
[1760021290872,0.2,220.2,220.19,11.59647521]
[1760021291852,0.2,220.2,220.19,16.13800752]
[1760021292374,0.2,220.2,220.19,22.11523389]
[1760021292577,0.2,220.2,220.19,16.09800752]
[1760021293374,0.2,220.28,220.19,27.4518383]
[1760021293688,0.2,220.28,220.25,10.87647521]
[1760021293853,0.2,220.28,220.26,4.54008898]
[1760021294051,0.2,220.28,220.27,10.87647521]
[1760021295474,0.2,220.28,220.27,11.55647521]
[1760021296384,0.2,220.28,220.27,16.09635808]
[1760021296681,0.2,220.28,220.27,46.83647521]
[1760021296878,0.2,220.28,220.27,10.87647521]
[1760021297093,0.2,220.28,220.27,46.83647521]
[1760021298181,0.2,220.28,220.27,52.05635808]
[1760021298374,0.2,220.28,220.27,51.37635808]
[1760021298580,0.2,220.28,220.27,10.87647521]
[1760021298776,0.2,220.28,220.27,51.31635808]
[1760021299465,0.2,220.28,220.27,51.99635808]
[1760021300267,0.2,220.28,220.27,16.09635808]
[1760021300586,0.2,220.28,220.27,57.93358445]
[1760021300772,0.2,220.28,220.27,51.93635808]
[1760021300967,0.2,220.39,220.28,10.87647521]
[1760021301284,6.17722637,220.39,220.31,5.97722637]
[1760021301467,6.17722637,220.39,220.31,35.86]
[1760021301783,5.97722637,220.37,220.3,35.84]
[1760021301963,0.2,220.39,220.3,35.84]
[1760021302164,0.2,220.39,220.22,20.8]
[1760021302165,5.97722637,220.37,220.22,20.8]
[1760021302378,5.97722637,220.35,220.28,10.87647521]
[1760021302564,5.97722637,220.37,220.29,5.97722637]
[1760021303086,20.8,220.34,220.29,5.97722637]
[1760021303275,6.17722637,220.39,220.31,5.97722637]
[1760021303480,20.8,220.36,220.31,5.97722637]
[1760021303681,20.8,220.36,220.34,10.87647521]
[1760021303882,20.8,220.38,220.34,10.87647521]
[1760021304069,20.8,220.38,220.33,10.87647521]
[1760021304383,20.8,220.38,220.33,15.41501357]
[1760021304781,20.8,220.38,220.33,10.87647521]
[1760021304978,20.8,220.38,220.33,15.41510188]
[1760021305178,20.8,220.36,220.33,15.41510188]
[1760021305376,0.2,220.39,220.33,11.55647521]
[1760021305679,6.17722637,220.39,220.33,10.87647521]
[1760021305884,6.17722637,220.39,220.32,4.53885257]
[1760021305885,20.8,220.36,220.32,10.87647521]
[1760021306274,20.8,220.36,220.32,15.41530714]
[1760021306472,18.3,220.36,220.32,15.41530714]
[1760021306977,18.3,220.36,220.29,19.61966331]
[1760021307160,5.97722637,220.35,220.27,5.97722637]
[1760021307488,5.97722637,220.34,220.27,31.51722637]
[1760021308271,4.53788035,220.37,220.28,4.53967677]
[1760021308577,20.8,220.35,220.29,16.85370158]
[1760021308781,20.8,220.35,220.31,5.97722637]
[1760021308986,0.2,220.39,220.33,5.97722637]
[1760021309188,0.2,220.39,220.35,5.97722637]
[1760021309891,0.2,220.39,220.34,10.87647521]
[1760021309892,0.5,220.37,220.34,10.87647521]
[1760021310198,5.97722637,220.38,220.29,10.87647521]
[1760021310394,21.0,220.39,220.33,10.87647521]
[1760021310692,0.2,220.39,220.33,10.87647521]
[1760021311284,26.47722637,220.41,220.33,10.87647521]
[1760021311976,5.97722637,220.41,220.33,10.87647521]
[1760021312177,3.47722637,220.41,220.34,4.53844059]
[1760021312572,0.2,220.43,220.35,10.87647521]
[1760021312793,6.17722637,220.43,220.35,10.87647521]
[1760021312992,0.2,220.43,220.35,10.87647521]
[1760021313198,26.77722637,220.42,220.35,10.87647521]
[1760021313394,20.8,220.42,220.35,10.87647521]
[1760021313775,26.77722637,220.42,220.35,16.85370158]
[1760021313976,26.77722637,220.42,220.35,10.87647521]
[1760021314290,5.97722637,220.38,220.33,10.87647521]
[1760021314481,5.97722637,220.38,220.33,11.55647521]
[1760021314686,20.8,220.39,220.33,11.55647521]
[1760021314998,0.5,220.36,220.31,4.53903351]
[1760021315875,0.5,220.36,220.32,17.53370158]
[1760021316194,0.5,220.36,220.33,0.68]
[1760021316395,0.5,220.36,220.34,4.53844059]
[1760021316578,20.8,220.37,220.34,5.21844059]
[1760021316779,20.8,220.37,220.34,4.53844059]
[1760021316991,6.17722637,220.43,220.35,11.55647521]
[1760021317374,20.8,220.4,220.35,10.87647521]
[1760021317699,20.8,220.4,220.32,46.53607565]
[1760021318095,0.2,220.43,220.33,10.87647521]
[1760021318395,21.0,220.43,220.34,11.55647521]
[1760021318594,0.2,220.43,220.39,5.97722637]
[1760021318800,0.2,220.43,220.4,0.68]
[1760021318994,0.2,220.43,220.4,5.97722637]
[1760021319183,0.2,220.43,220.4,6.65722637]
[1760021320581,0.2,220.43,220.41,6.65722637]
[1760021321021,0.2,220.43,220.41,0.68]
[1760021321402,0.2,220.43,220.4,10.51435339]
[1760021321605,0.2,220.43,220.42,0.68]
[1760021322802,0.2,220.43,220.42,11.19401976]
[1760021322984,0.2,220.51,220.43,10.87647521]
[1760021323188,0.2,220.51,220.48,5.97722637]
[1760021323384,0.2,220.51,220.5,16.85370158]
[1760021323896,0.2,220.51,220.5,17.54370158]
[1760021324296,0.2,220.59,220.56,5.97722637]
[1760021324906,6.64722637,220.58,220.49,0.71]
[1760021325203,6.64722637,220.58,220.43,20.8]
[1760021325204,5.97722637,220.54,220.47,35.12]
[1760021325502,5.97722637,220.52,220.44,52.68370158]
[1760021325702,5.97722637,220.52,220.44,51.97370158]
[1760021325899,5.97722637,220.54,220.46,10.87647521]
[1760021326099,5.97722637,220.54,220.47,0.71]
[1760021326989,20.8,220.51,220.44,10.87647521]
[1760021327294,4.53453044,220.53,220.41,10.87647521]
[1760021327295,5.97722637,220.48,220.41,10.87647521]
[1760021327495,5.97722637,220.44,220.38,0.71]
[1760021327802,5.97722637,220.44,220.39,10.87647521]
[1760021328006,5.97722637,220.44,220.39,0.71]
[1760021328190,5.97722637,220.45,220.38,10.87647521]
[1760021328880,5.97722637,220.45,220.38,15.41408841]
[1760021329884,0.67,220.47,220.38,15.41408841]
[1760021329885,5.97722637,220.47,220.38,15.41408841]
[1760021330102,20.8,220.48,220.41,5.97722637]
[1760021330301,20.8,220.48,220.42,0.71]
[1760021330696,5.97722637,220.5,220.42,0.71]
[1760021330697,20.8,220.47,220.42,0.71]
[1760021330905,20.8,220.47,220.43,0.71]
[1760021331105,20.8,220.47,220.38,15.41408841]
[1760021331106,21.47,220.47,220.38,11.58647521]
[1760021331297,5.97722637,220.44,220.39,10.87647521]
[1760021331726,5.97722637,220.44,220.35,0.71]
[1760021331889,5.97722637,220.44,220.36,45.87647521]
[1760021332503,0.5,220.42,220.36,45.87647521]
[1760021332938,0.5,220.42,220.4,5.97722637]
[1760021333450,0.5,220.42,220.4,0.71]
[1760021333735,0.5,220.42,220.38,10.87647521]
[1760021333904,0.5,220.42,220.38,11.58647521]
[1760021334312,20.8,220.44,220.38,10.87647521]
[1760021334508,20.8,220.45,220.37,10.51504912]
[1760021334810,20.8,220.43,220.37,4.53782275]
[1760021335028,20.8,220.43,220.35,11.22535702]
[1760021335222,21.47,220.42,220.35,10.87647521]
[1760021335422,5.97722637,220.41,220.34,4.53843856]
[1760021335730,26.77722637,220.39,220.33,10.87647521]
[1760021336323,5.97722637,220.39,220.33,10.87647521]
[1760021336533,6.64722637,220.41,220.33,16.85370158]
[1760021336729,4.53591564,220.47,220.38,10.87647521]
[1760021336911,20.8,220.45,220.38,11.58647521]
[1760021337220,5.97722637,220.44,220.36,10.87647521]
[1760021337426,5.97722637,220.44,220.36,11.58647521]
[1760021337625,5.97722637,220.44,220.38,10.87647521]
[1760021337808,20.8,220.43,220.38,10.87647521]
[1760021338005,20.8,220.43,220.39,0.71]
[1760021338324,26.77722637,220.49,220.41,5.97722637]
[1760021338908,31.31263667,220.49,220.41,5.97722637]
[1760021339226,5.97722637,220.47,220.39,5.97722637]
[1760021340322,26.77722637,220.45,220.38,4.53761684]
[1760021340704,5.97722637,220.4,220.36,10.87647521]
[1760021340904,0.67,220.44,220.31,10.87647521]
[1760021341124,5.97722637,220.4,220.33,10.87647521]
[1760021341335,19.99999999,220.54,220.37,5.97722637]
[1760021341639,0.2,220.59,220.45,5.97722637]
[1760021341640,19.87,220.55,220.45,5.97722637]
[1760021341926,19.87,220.55,220.43,10.87647521]
[1760021341927,0.2,220.59,220.5,10.87647521]
[1760021342127,5.97722637,220.58,220.5,10.87647521]
[1760021342312,20.8,220.48,220.39,10.87647521]
[1760021342516,5.97722637,220.46,220.39,10.87647521]
[1760021342718,20.8,220.51,220.41,10.87647521]
[1760021342916,20.8,220.46,220.41,10.87647521]
[1760021343116,20.8,220.46,220.42,5.24679339]
[1760021343428,20.8,220.46,220.43,0.71]
[1760021343625,5.97722637,220.5,220.44,0.71]
[1760021343809,5.97722637,220.51,220.44,0.71]
[1760021344010,20.8,220.5,220.44,0.71]
[1760021344221,5.97722637,220.49,220.44,0.71]
[1760021344423,6.64722637,220.49,220.42,4.53679339]
[1760021344730,5.97722637,220.5,220.43,11.58647521]
[1760021344934,5.97722637,220.5,220.44,0.71]
[1760021345137,20.8,220.5,220.45,4.536176]
[1760021345314,0.5,220.53,220.48,5.97722637]
[1760021345516,0.5,220.53,220.5,5.97722637]
[1760021345729,5.97722637,220.57,220.51,10.87647521]
[1760021346046,0.2,220.59,220.52,5.97722637]
[1760021346216,0.2,220.59,220.53,10.87647521]
[1760021346417,0.2,220.59,220.54,5.97722637]
[1760021346610,21.0,220.59,220.55,10.87647521]
[1760021346815,0.2,220.59,220.56,6.68722637]
[1760021347016,0.2,220.59,220.49,20.8]
[1760021347337,5.97722637,220.55,220.47,6.68722637]
[1760021347546,5.97722637,220.51,220.43,15.41306278]
[1760021347713,5.97722637,220.55,220.47,5.97722637]
[1760021347910,5.97722637,220.53,220.46,5.97722637]
[1760021348129,5.97722637,220.53,220.46,0.71]
[1760021349049,20.8,220.55,220.44,0.71]
[1760021349355,5.97722637,220.51,220.45,4.536176]
[1760021349515,5.97722637,220.51,220.45,15.41265121]
[1760021349718,20.8,220.5,220.46,11.58647521]
[1760021349940,29.70489083,220.65,220.46,11.58647521]
[1760021349941,0.87,220.6,220.48,10.87647521]
[1760021350143,0.2,220.6,220.55,3.99094676]
[1760021350338,0.2,220.6,220.58,10.87647521]
[1760021350839,0.2,220.68,220.59,15.57742197]
[1760021351073,0.2,220.68,220.61,10.87647521]
[1760021351243,0.2,220.68,220.6,0.71]
[1760021351441,0.2,220.68,220.45,38.55749601]
[1760021351442,3.99094676,220.64,220.57,3.99094676]
[1760021351623,3.99094676,220.64,220.57,10.87647521]
[1760021352019,24.79094676,220.65,220.57,10.87647521]
[1760021352219,3.99094676,220.67,220.58,4.70094676]
[1760021352643,3.99094676,220.67,220.61,10.87647521]
[1760021352843,0.87,220.68,220.61,10.87647521]
[1760021353149,0.2,220.68,220.63,10.87647521]
[1760021353345,0.2,220.68,220.65,4.53206435]
[1760021353522,0.2,220.68,220.66,10.87647521]
[1760021353722,0.2,220.68,220.66,11.57647521]
[1760021354527,0.2,220.68,220.66,10.87647521]
[1760021354725,0.2,220.68,220.64,0.7]
[1760021354928,0.2,220.68,220.65,11.57647521]
[1760021355222,0.2,220.68,220.67,14.86742197]
[1760021355534,0.2,220.68,220.67,19.39907557]
[1760021355844,0.2,220.68,220.67,20.09907557]
[1760021357258,0.2,220.68,220.67,54.71907557]
[1760021357429,0.2,220.76,220.68,10.87647521]
[1760021357756,0.2,220.76,220.75,14.86742197]
[1760021358135,0.2,220.76,220.75,15.56742197]
[1760021358825,0.2,220.76,220.75,25.25360425]
[1760021358826,1e-08,220.76,220.75,25.25360425]
[1760021359027,1e-08,220.78,220.77,36.20607615]
[1760021359234,1e-08,220.78,220.77,40.19702291]
[1760021359433,1e-08,220.78,220.77,40.89702291]
[1760021359735,1e-08,220.78,220.77,75.49702291]
[1760021360243,1e-08,220.78,220.77,15.40607615]
[1760021360433,1e-08,220.78,220.77,10.87647521]
[1760021361149,1e-08,220.78,220.77,11.57647521]
[1760021363439,0.2,220.91,220.79,31.67647521]
[1760021363757,0.87,220.91,220.79,35.66742197]
[1760021364061,0.87,220.91,220.79,32.37647521]
[1760021364269,1e-08,220.8,220.79,70.94742197]
[1760021367860,1e-08,220.8,220.79,36.36742197]
[1760021368053,1e-08,220.8,220.79,70.94742197]
[1760021368955,1e-08,220.8,220.79,66.25647521]
[1760021369266,1e-08,220.8,220.79,70.24742197]
[1760021369461,1e-08,220.8,220.79,36.36742197]
[1760021369671,1e-08,220.8,220.79,10.87647521]
[1760021369872,0.67000001,220.8,220.79,10.87647521]
[1760021370270,0.67000001,220.8,220.77,10.87647521]
[1760021370470,0.67000001,220.8,220.79,14.86742197]
[1760021370471,1e-08,220.8,220.79,14.86742197]
[1760021370859,1e-08,220.8,220.79,15.56742197]
[1760021371583,1e-08,220.8,220.79,20.0966126]
[1760021372277,1e-08,220.8,220.79,16.10566584]
[1760021372578,1e-08,220.8,220.79,20.0966126]
[1760021373048,1e-08,220.8,220.79,15.40566584]
[1760021373244,1e-08,220.8,220.79,53.9566126]
[1760021373651,0.67000001,220.8,220.76,4.52980612]
[1760021373851,0.67000001,220.8,220.75,13.33412122]
[1760021373852,1e-08,220.8,220.75,13.33412122]
[1760021374071,0.67,220.79,220.76,14.86742197]
[1760021374375,1e-08,220.8,220.76,10.87647521]
[1760021374761,1e-08,220.8,220.78,3.99094676]
[1760021375074,1e-08,220.8,220.79,10.87647521]
[1760021375452,1e-08,220.8,220.79,15.40566584]
[1760021375654,1e-08,220.8,220.79,49.96566584]
[1760021376451,1e-08,220.8,220.79,53.9566126]
[1760021377181,1e-08,220.8,220.79,54.6566126]
[1760021378467,1e-08,220.8,220.76,10.87647521]
[1760021378667,0.67,220.79,220.76,10.87647521]
[1760021379063,0.67,220.79,220.71,21.5]
[1760021379064,0.67,220.79,220.71,20.8]